lending/lending_fUSD_20240110
["ID","MTS","AMOUNT","RATE_DAILY","PERIOD"]
[311091899,1704901879825,-1111.49,0.0003315,2]
[311091900,1704901879835,-517.3,0.0003315,2]
[311091901,1704901879845,-22537.3,0.0003315,2]
[311091902,1704901879856,-652.84,0.0003315,2]
[311091903,1704901879866,-1027.93,0.0003315,2]
[311091904,1704901879876,-500.0,0.0003315,2]
[311091905,1704901879886,-500.0,0.0003315,2]
[311091906,1704901879897,-619.25,0.0003315,2]
[311091907,1704901879907,-540.69,0.0003315,2]
[311091908,1704901879917,-500.0,0.0003315,2]
[311091909,1704901879927,-500.0,0.0003315,2]
[311091910,1704901879937,-531.22,0.0003315,2]
[311091911,1704901879946,-949.96,0.0003315,2]
[311091912,1704901879956,-822.79,0.0003315,2]
[311091913,1704901879966,-561.93,0.0003315,2]
[311091914,1704901879980,-841.87,0.0003315,2]
[311091915,1704901879990,-500.0,0.0003315,2]
[311091916,1704901880000,-500.0,0.0003315,2]
[311091917,1704901880010,-4149.02,0.0003315,2]
[311091918,1704901880024,-500.0,0.0003315,2]
[311091919,1704901880035,-500.0,0.0003315,2]
[311091920,1704901880045,-588.0,0.0003315,2]
[311091921,1704901880056,-1144.17,0.0003315,2]
[311091922,1704901880067,-225.24832955,0.0003315,2]
[311091923,1704901880078,-1384.54,0.0003315,2]
[311091924,1704901880089,-2853.73,0.0003315,2]
[311091925,1704901880099,-1585.1,0.0003315,2]
[311091926,1704901880110,-565.73,0.0003315,2]
[311091927,1704901880121,-518.12,0.0003315,2]
[311091928,1704901880132,-546.42,0.0003315,2]
[311091929,1704901880142,-5771.71,0.0003315,2]
[311091930,1704901880153,-500.0,0.0003315,2]
[311091931,1704901880164,-1094.06,0.0003315,2]
[311091932,1704901880174,-1075.13,0.0003315,2]
[311091933,1704901880184,-500.0,0.0003315,2]
[311091934,1704901880195,-500.0,0.0003315,2]
[311091935,1704901880205,-1529.8,0.0003315,2]
[311091936,1704901880216,-704.92,0.0003315,2]
[311091937,1704901880226,-6554.84,0.0003315,2]
[311091938,1704901880236,-500.0,0.0003315,2]
[311091939,1704901880247,-334.39227639,0.0003315,2]
[311091940,1704901880257,-500.0,0.0003315,2]
[311091941,1704901880268,-515.73,0.0003315,2]
[311091942,1704901880278,-606.81,0.0003315,2]
[311091943,1704901880288,-3847.89,0.0003315,2]
[311091944,1704901880299,-1237.27,0.0003315,2]
[311091945,1704901880309,-1873.06,0.0003315,2]
[311091946,1704901880319,-500.0,0.0003315,2]
[311091947,1704901880330,-722.18,0.0003315,2]
[311091948,1704901880340,-682.55,0.0003315,2]
[311091949,1704901880349,-890.2,0.0003315,2]
[311091950,1704901880359,-1162.53,0.0003315,2]
[311091951,1704901880369,-500.0,0.0003315,2]
[311091952,1704901880380,-1171.63,0.0003315,2]
[311091953,1704901880390,-1201.37,0.0003315,2]
[311091954,1704901880400,-838.5,0.0003315,2]
[311091955,1704901880411,-1149.89,0.0003315,2]
[311091956,1704901880421,-589.12,0.0003315,2]
[311091957,1704901880432,-1798.18,0.0003315,2]
[311091958,1704901880442,-596.51,0.0003315,2]
[311091959,1704901880452,-1893.93,0.0003315,2]
[311091960,1704901880462,-1002.66,0.0003315,2]
[311091961,1704901880472,-860.47,0.0003315,2]
[311091962,1704901880483,-500.0,0.0003315,2]
[311091963,1704901880493,-633.99,0.0003315,2]
[311091964,1704901880502,-542.38,0.0003315,2]
[311091965,1704901880513,-3386.41,0.0003315,2]
[311091966,1704901880525,-500.0,0.0003315,2]
[311091967,1704901880535,-756.19,0.0003315,2]
[311091968,1704901880546,-500.0,0.0003315,2]
[311091969,1704901880556,-816.45,0.0003315,2]
[311091970,1704901880566,-3242.4,0.0003315,2]
[311091971,1704901880579,-500.0,0.0003315,2]
[311091972,1704901880590,-500.0,0.0003315,2]
[311091973,1704901880600,-500.0,0.0003315,2]
[311091974,1704901880611,-1281.58,0.0003315,2]
[311091975,1704901880621,-729.79,0.0003315,2]
[311091976,1704901880632,-500.0,0.00033184,2]
[311091977,1704901880642,-156.0,0.00033205,2]
[311091978,1704901880652,-500.0,0.00033221,2]
[311091979,1704901880663,-500.0,0.00033221,2]
[311091980,1704901880673,-500.0,0.00033221,2]
[311091981,1704901880683,-500.0,0.00033221,2]
[311091982,1704901880693,-500.0,0.00033221,2]
[311091983,1704901880703,-500.0,0.00033221,2]
[311091984,1704901880802,-500.0,0.00033221,2]
[311091985,1704901880813,-500.0,0.00033221,2]
[311091986,1704901880823,-500.0,0.00033221,2]
[311091987,1704901880834,-500.0,0.00033221,2]
[311091988,1704901880843,-500.0,0.00033221,2]
[311091989,1704901880853,-500.0,0.00033221,2]
[311091990,1704901880863,-500.0,0.00033221,2]
[311091991,1704901880874,-500.0,0.00033221,2]
[311091992,1704901880884,-500.0,0.00033221,2]
[311091993,1704901880895,-500.0,0.00033221,2]
[311091994,1704901880906,-500.0,0.00033221,2]
[311091995,1704901880916,-500.0,0.00033221,2]
[311091996,1704901880926,-432.14274985,0.00033221,2]
[311091997,1704901880937,-171.7992971,0.00033249,2]
[311091998,1704901880948,-4153.62529529,0.00033249,2]
[311091999,1704901880959,-1629.14913512,0.00033249,2]
[311092000,1704901880971,-1723.462924,0.00033326,2]
[311092001,1704901880982,-450.0,0.00033327,3]
[311092002,1704901880991,-262.7,0.00033346,2]
[311092003,1704901881002,-50000.0,0.00033349,10]
[311092004,1704901881012,-50000.0,0.00033349,10]
[311092005,1704901881024,-50000.0,0.00033349,10]
[311092006,1704901881034,-50000.0,0.00033349,10]
[311092007,1704901881044,-50000.0,0.00033349,10]
[311092008,1704901881053,-50000.0,0.00033349,10]
[311092009,1704901881064,-50000.0,0.00033349,10]
[311092010,1704901881074,-8340.58295549,0.00033349,10]
[311092011,1704901881084,-47347.74882866,0.00033349,10]
[311092012,1704901881094,-50000.0,0.00033349,10]
[311092013,1704901881104,-50000.0,0.00033349,10]
[311092014,1704901881114,-4854.40614514,0.00033349,10]
[311092015,1704901881124,-50000.0,0.00033349,10]
[311092016,1704901881135,-36500.64865305,0.00033349,10]
[311092017,1704901881145,-80246.36587607,0.00033349,10]
[311092018,1704901881155,-41944.6290253,0.00033349,10]
[311092019,1704901881165,-207.210858,0.00033349,7]
[311092020,1704901881176,-151.0,0.00033349,7]
[311092021,1704901881185,-197.447945,0.00033349,7]
[311092022,1704901881195,-263.279856,0.00033349,7]
[311092023,1704901881206,-263.279856,0.00033349,7]
[311092024,1704901881216,-151.0,0.00033349,7]
[311092025,1704901881226,-151.0,0.00033349,7]
[311092026,1704901881236,-3903.948256,0.00033349,7]
[311092027,1704901881245,-3903.948256,0.00033349,7]
[311092028,1704901881256,-247.22115209,0.00033387,2]
[311092029,1704901881266,-57203.9975809,0.00033401,2]
[311092030,1704901881278,-727.0409532,0.00033401,2]
[311092031,1704901881288,-500.0,0.00033417,2]
[311092032,1704901881298,-649.73,0.00033424,2]
[311092033,1704901881308,-500.0,0.00033424,2]
[311092034,1704901881318,-500.0,0.00033424,11]
[311092035,1704901881329,-500.0,0.00033424,2]
[311092036,1704901881339,-500.0,0.00033424,2]
[311092037,1704901881349,-580.78,0.00033424,2]
[311092038,1704901881359,-500.0,0.00033424,2]
[311092039,1704901881369,-500.0,0.00033424,2]
[311092040,1704901881378,-500.0,0.00033424,2]
[311092041,1704901881388,-624.51,0.00033424,2]
[311092042,1704901881397,-769.6,0.00033424,2]
[311092043,1704901881407,-500.0,0.00033424,2]
[311092044,1704901881417,-646.9,0.00033424,2]
[311092045,1704901881427,-530.33,0.00033424,2]
[311092046,1704901881438,-815.38,0.00033424,2]
[311092047,1704901881448,-500.0,0.00033424,2]
[311092048,1704901881458,-226.63651741,0.00033424,2]
[311092049,1704901881468,-603.48,0.00033424,2]
[311092050,1704901881478,-755.23,0.00033424,2]
[311092051,1704901881489,-500.0,0.00033424,2]
[311092052,1704901881499,-550.99,0.00033424,2]
[311092053,1704901881510,-165.52838909,0.00033424,2]
[311092054,1704901881524,-500.0,0.00033424,2]
[311092055,1704901881535,-500.0,0.00033424,2]
[311092056,1704901881546,-500.0,0.00033424,2]
[311092057,1704901881557,-500.0,0.00033424,2]
[311092058,1704901881567,-500.0,0.00033424,2]
[311092059,1704901881578,-800.14,0.00033424,2]
[311092060,1704901881588,-500.0,0.00033424,2]
[311092061,1704901881599,-500.0,0.00033424,2]
[311092062,1704901881610,-707.25,0.00033424,2]
[311092063,1704901881621,-520.54,0.00033424,2]
[311092064,1704901881633,-500.0,0.00033424,2]
[311092065,1704901881644,-500.0,0.00033424,2]
[311092066,1704901881655,-672.75,0.00033424,2]
[311092067,1704901881666,-528.46,0.00033424,2]
[311092068,1704901881677,-500.0,0.00033424,2]
[311092069,1704901881688,-1198.47,0.00033424,2]
[311092070,1704901881698,-500.0,0.00033424,2]
[311092071,1704901881709,-632.59,0.00033424,2]
[311092072,1704901881720,-1056.6,0.00033424,2]
[311092073,1704901881731,-500.0,0.00033424,2]
[311092074,1704901881742,-500.0,0.00033424,2]
[311092075,1704901881751,-500.0,0.00033424,2]
[311092076,1704901881762,-500.0,0.00033424,2]
[311092077,1704901881777,-500.0,0.00033424,2]
[311092078,1704901881787,-500.0,0.00033424,2]
[311092079,1704901881799,-586.76,0.00033424,2]
[311092080,1704901881809,-731.92,0.00033424,2]
[311092081,1704901881819,-9210.75,0.00033424,2]
[311092082,1704901881830,-500.0,0.00033424,2]
[311092083,1704901881841,-500.0,0.00033424,2]
[311092084,1704901881852,-809.77,0.00033424,2]
[311092085,1704901881862,-663.73,0.00033424,2]
[311092086,1704901881872,-662.54,0.00033424,2]
[311092087,1704901881882,-500.0,0.00033424,2]
[311092088,1704901881896,-534.71,0.00033424,2]
[311092089,1704901881906,-6627.1,0.00033424,2]
[311092090,1704901881916,-1891.17,0.00033424,2]
[311092091,1704901881926,-1534.85,0.00033424,2]
[311092092,1704901881936,-500.0,0.00033424,2]
[311092093,1704901881946,-462.13243504,0.00033424,2]
[311092094,1704901881957,-500.0,0.00033424,2]
[311092095,1704901881967,-500.0,0.00033424,2]
[311092096,1704901881984,-2924.88,0.00033424,2]
[311092097,1704901882007,-765.82,0.00033424,2]
[311092098,1704901882040,-500.0,0.00033424,2]
[311092099,1704901882084,-500.0,0.00033424,2]
[311092100,1704901882113,-3449.62,0.00033424,2]
[311092101,1704901882136,-750.66,0.00033424,2]
[311092102,1704901882146,-579.7,0.00033424,2]
[311092103,1704901882157,-959.31,0.00033424,2]
[311092104,1704901882167,-500.0,0.00033424,2]
[311092105,1704901882177,-7311.05,0.00033424,2]
[311092106,1704901882187,-1065.45,0.00033424,2]
[311092107,1704901882198,-1035.64,0.00033424,2]
[311092108,1704901882208,-500.0,0.00033424,2]
[311092109,1704901882218,-505.76002809,0.00033424,2]
[311092110,1704901882228,-191.46458931,0.00033424,2]
[311092111,1704901882238,-500.0,0.00033424,2]
[311092112,1704901882248,-2187.38,0.00033424,2]
[311092113,1704901882258,-702.32,0.00033424,2]
[311092114,1704901882268,-500.0,0.00033424,2]
[311092115,1704901882279,-500.0,0.00033424,2]
[311092116,1704901882290,-500.0,0.00033424,2]
[311092117,1704901882300,-500.0,0.00033424,2]
[311092118,1704901882310,-1173.1,0.00033424,2]
[311092119,1704901882320,-977.57,0.00033424,2]
[311092120,1704901882330,-500.0,0.00033424,2]
[311092121,1704901882340,-500.0,0.00033424,2]
[311092122,1704901882350,-905.27,0.00033424,2]
[311092123,1704901882360,-2184.67,0.00033424,2]
[311092124,1704901882371,-539.72,0.00033424,2]
[311092125,1704901882380,-500.0,0.00033424,2]
[311092126,1704901882390,-554.29,0.00033424,2]
[311092127,1704901882399,-2851.32,0.00033424,2]
[311092128,1704901882409,-1084.11,0.00033424,2]
[311092129,1704901882418,-743.97,0.00033424,2]
[311092130,1704901882427,-2290.02,0.00033424,2]
[311092131,1704901882437,-500.0,0.00033424,2]
[311092132,1704901882447,-652.69,0.00033424,2]
[311092133,1704901882456,-3550.06,0.00033424,2]
[311092134,1704901882470,-500.0,0.00033424,2]
[311092135,1704901882479,-500.0,0.00033424,2]
[311092136,1704901882489,-2468.23,0.00033424,2]
[311092137,1704901882499,-741.58,0.00033424,2]
[311092138,1704901882509,-1013.12,0.00033424,2]
[311092139,1704901882518,-2755.49,0.00033424,2]
[311092140,1704901882530,-1367.5,0.00033424,2]
[311092141,1704901882540,-523.18,0.00033424,2]
[311092142,1704901882549,-606.41,0.00033424,2]
[311092143,1704901882559,-1010.49,0.00033424,2]
[311092144,1704901882569,-1214.0,0.00033424,2]
[311092145,1704901882578,-500.0,0.00033424,2]
[311092146,1704901882590,-500.0,0.00033424,2]
[311092147,1704901882600,-1052.82,0.00033424,2]
[311092148,1704901882610,-1111.49,0.00033424,2]
[311092149,1704901882620,-22537.3,0.00033424,2]
[311092150,1704901882630,-517.3,0.00033424,2]
[311092151,1704901882639,-652.84,0.00033424,2]
[311092152,1704901882649,-1027.93,0.00033424,2]
[311092153,1704901882659,-500.0,0.00033424,2]
[311092154,1704901882668,-500.0,0.00033424,2]
[311092155,1704901882678,-619.25,0.00033424,2]
[311092156,1704901882687,-540.69,0.00033424,2]
[311092157,1704901882697,-500.0,0.00033424,2]
[311092158,1704901882707,-500.0,0.00033424,2]
[311092159,1704901882718,-531.22,0.00033424,2]
[311092160,1704901882727,-949.96,0.00033424,2]
[311092161,1704901882737,-822.79,0.00033424,2]
[311092162,1704901882747,-561.93,0.00033424,2]
[311092163,1704901882758,-841.87,0.00033424,2]
[311092164,1704901882767,-500.0,0.00033424,2]
[311092165,1704901882780,-500.0,0.00033424,2]
[311092166,1704901882790,-4149.02,0.00033424,2]
[311092167,1704901882800,-500.0,0.00033424,2]
[311092168,1704901882810,-500.0,0.00033424,2]
[311092169,1704901882821,-588.0,0.00033424,2]
[311092170,1704901882831,-1144.17,0.00033424,2]
[311092171,1704901882841,-1384.54,0.00033424,2]
[311092172,1704901882851,-2853.73,0.00033424,2]
[311092173,1704901882861,-1585.1,0.00033424,2]
[311092174,1704901882871,-565.73,0.00033424,2]
[311092175,1704901882881,-518.12,0.00033424,2]
[311092176,1704901882891,-546.42,0.00033424,2]
[311092177,1704901882902,-5771.71,0.00033424,2]
[311092178,1704901882913,-1094.06,0.00033424,2]
[311092179,1704901882925,-500.0,0.00033424,2]
[311092180,1704901882935,-1075.13,0.00033424,2]
[311092181,1704901882945,-500.0,0.00033424,2]
[311092182,1704901882955,-500.0,0.00033424,2]
[311092183,1704901882966,-1529.8,0.00033424,2]
[311092184,1704901882976,-704.92,0.00033424,2]
[311092185,1704901882986,-6554.84,0.00033424,2]
[311092186,1704901882996,-500.0,0.00033424,2]
[311092187,1704901883006,-500.0,0.00033424,2]
[311092188,1704901883016,-515.73,0.00033424,2]
[311092189,1704901883031,-606.81,0.00033424,2]
[311092190,1704901883042,-3847.89,0.00033424,2]
[311092191,1704901883052,-1237.27,0.00033424,2]
[311092192,1704901883061,-1873.06,0.00033424,2]
[311092193,1704901883072,-500.0,0.00033424,2]
[311092194,1704901883082,-722.18,0.00033424,2]
[311092195,1704901883092,-682.55,0.00033424,2]
[311092196,1704901883103,-890.2,0.00033424,2]
[311092197,1704901883113,-1162.53,0.00033424,2]
[311092198,1704901883123,-500.0,0.00033424,2]
[311092199,1704901883133,-1171.63,0.00033424,2]
[311092200,1704901883144,-1201.37,0.00033424,2]
[311092201,1704901883155,-838.5,0.00033424,2]
[311092202,1704901883165,-1149.89,0.00033424,2]
[311092203,1704901883175,-589.12,0.00033424,2]
[311092204,1704901883186,-1798.18,0.00033424,2]
[311092205,1704901883196,-596.51,0.00033424,2]
[311092206,1704901883207,-1893.93,0.00033424,2]
[311092207,1704901883217,-1002.66,0.00033424,2]
[311092208,1704901883228,-860.47,0.00033424,2]
[311092209,1704901883238,-500.0,0.00033424,2]
[311092210,1704901883249,-633.99,0.00033424,2]
[311092211,1704901883260,-542.38,0.00033424,2]
[311092212,1704901883274,-3386.41,0.00033424,2]
[311092213,1704901883286,-756.19,0.00033424,2]
[311092214,1704901883297,-500.0,0.00033424,2]
[311092215,1704901883309,-500.0,0.00033424,2]
[311092216,1704901883320,-816.45,0.00033424,2]
[311092217,1704901883330,-3242.4,0.00033424,2]
[311092218,1704901883341,-500.0,0.00033424,2]
[311092219,1704901883351,-500.0,0.00033424,2]
[311092220,1704901883366,-160.94358384,0.00033437,4]
[311092221,1704901883376,-300.0,0.000335,6]
[311092222,1704901883386,-1919.71483849,0.00033546,5]
[311092223,1704901883396,-5000.0,0.00033552,4]
[311092224,1704901883407,-156.82829211,0.00033574,2]
[311092225,1704901883417,-155.0,0.000336,4]
[311092226,1704901883428,-200.0,0.000336,10]
[311092227,1704901883438,-500.0,0.0003365,2]
[311092228,1704901883449,-486.5495646,0.00033675,2]
[311092229,1704901883459,-278.792974,0.00033675,2]
[311092230,1704901883470,-1405.1173767,0.00033675,2]
[311092231,1704901883480,-525.2014161,0.00033675,2]
[311092232,1704901883490,-649.73,0.00033698,2]
[311092233,1704901883501,-500.0,0.00033698,2]
[311092234,1704901883512,-500.0,0.00033698,13]
[311092235,1704901883526,-500.0,0.00033698,2]
[311092236,1704901883537,-500.0,0.00033698,2]
[311092237,1704901883547,-580.78,0.00033698,2]
[311092238,1704901883557,-500.0,0.00033698,2]
[311092239,1704901883567,-500.0,0.00033698,2]
[311092240,1704901883577,-500.0,0.00033698,2]
[311092241,1704901883588,-624.51,0.00033698,2]
[311092242,1704901883599,-769.6,0.00033698,2]
[311092243,1704901883609,-157.54514029,0.00033698,2]
[311092244,1704901883620,-646.9,0.00033698,2]
[311092245,1704901883630,-530.33,0.00033698,2]
[311092246,1704901883640,-815.38,0.00033698,2]
[311092247,1704901883651,-299.56848361,0.00033698,2]
[311092248,1704901883660,-603.48,0.00033698,2]
[311092249,1704901883671,-755.23,0.00033698,2]
[311092250,1704901883681,-500.0,0.00033698,2]
[311092251,1704901883691,-550.99,0.00033698,2]
[311092252,1704901883701,-500.0,0.00033698,2]
[311092253,1704901883711,-500.0,0.00033698,2]
[311092254,1704901883720,-500.0,0.00033698,2]
[311092255,1704901883730,-643.34517361,0.00033698,2]
[311092256,1704901883740,-500.0,0.00033698,2]
[311092257,1704901883750,-800.14,0.00033698,2]
[311092258,1704901883760,-292.06935547,0.00033698,2]
[311092259,1704901883772,-500.0,0.00033698,2]
[311092260,1704901883782,-707.25,0.00033698,2]
[311092261,1704901883792,-520.54,0.00033698,2]
[311092262,1704901883802,-500.0,0.00033698,2]
[311092263,1704901883812,-295.99812288,0.00033698,2]
[311092264,1704901883823,-672.75,0.00033698,2]
[311092265,1704901883833,-528.46,0.00033698,2]
[311092266,1704901883844,-500.0,0.00033698,2]
[311092267,1704901883854,-1198.47,0.00033698,2]
[311092268,1704901883864,-500.0,0.00033698,2]
[311092269,1704901883874,-632.59,0.00033698,2]
[311092270,1704901883884,-1056.6,0.00033698,2]
[311092271,1704901883895,-500.0,0.00033698,2]
[311092272,1704901883905,-500.0,0.00033698,2]
[311092273,1704901883915,-500.0,0.00033698,2]
[311092274,1704901883925,-536.34127373,0.00033698,2]
[311092275,1704901883936,-314.6680001,0.00033698,2]
[311092276,1704901883946,-500.0,0.00033698,2]
[311092277,1704901883957,-586.76,0.00033698,2]
[311092278,1704901883967,-731.92,0.00033698,2]
[311092279,1704901883980,-9210.75,0.00033698,2]
[311092280,1704901883991,-500.0,0.00033698,2]
[311092281,1704901884004,-500.0,0.00033698,2]
[311092282,1704901884015,-809.77,0.00033698,2]
[311092283,1704901884030,-663.73,0.00033698,2]
[311092284,1704901884040,-662.54,0.00033698,2]
[311092285,1704901884051,-500.0,0.00033698,2]
[311092286,1704901884063,-534.71,0.00033698,2]
[311092287,1704901884074,-6627.1,0.00033698,2]
[311092288,1704901884086,-1891.17,0.00033698,2]
[311092289,1704901884097,-1534.85,0.00033698,2]
[311092290,1704901884107,-500.0,0.00033698,2]
[311092291,1704901884118,-500.0,0.00033698,2]
[311092292,1704901884129,-500.0,0.00033698,2]
[311092293,1704901884140,-2924.88,0.00033698,2]
[311092294,1704901884151,-765.82,0.00033698,2]
[311092295,1704901884162,-500.0,0.00033698,2]
[311092296,1704901884173,-500.0,0.00033698,2]
[311092297,1704901884184,-3449.62,0.00033698,2]
[311092298,1704901884194,-750.66,0.00033698,2]
[311092299,1704901884204,-579.7,0.00033698,2]
[311092300,1704901884215,-959.31,0.00033698,2]
[311092301,1704901884225,-7311.05,0.00033698,2]
[311092302,1704901884236,-500.0,0.00033698,2]
[311092303,1704901884246,-1065.45,0.00033698,2]
[311092304,1704901884257,-1035.64,0.00033698,2]
[311092305,1704901884268,-500.0,0.00033698,2]
[311092306,1704901884282,-500.0,0.00033698,2]
[311092307,1704901884292,-2187.38,0.00033698,2]
[311092308,1704901884303,-702.32,0.00033698,2]
[311092309,1704901884314,-500.0,0.00033698,2]
[311092310,1704901884325,-500.0,0.00033698,2]
[311092311,1704901884336,-500.0,0.00033698,2]
[311092312,1704901884347,-1173.1,0.00033698,2]
[311092313,1704901884357,-500.0,0.00033698,2]
[311092314,1704901884368,-977.57,0.00033698,2]
[311092315,1704901884378,-500.0,0.00033698,2]
[311092316,1704901884388,-500.0,0.00033698,2]
[311092317,1704901884399,-905.27,0.00033698,2]
[311092318,1704901884409,-2184.67,0.00033698,2]
[311092319,1704901884419,-539.72,0.00033698,2]
[311092320,1704901884429,-500.0,0.00033698,2]
[311092321,1704901884440,-2851.32,0.00033698,2]
[311092322,1704901884450,-554.29,0.00033698,2]
[311092323,1704901884460,-1084.11,0.00033698,2]
[311092324,1704901884470,-743.97,0.00033698,2]
[311092325,1704901884480,-500.0,0.00033698,2]
[311092326,1704901884490,-2290.02,0.00033698,2]
[311092327,1704901884500,-652.69,0.00033698,2]
[311092328,1704901884510,-3550.06,0.00033698,2]
[311092329,1704901884524,-500.0,0.00033698,2]
[311092330,1704901884534,-500.0,0.00033698,2]
[311092331,1704901884545,-2468.23,0.00033698,2]
[311092332,1704901884554,-741.58,0.00033698,2]
[311092333,1704901884565,-1013.12,0.00033698,2]
[311092334,1704901884575,-2755.49,0.00033698,2]
[311092335,1704901884586,-1367.5,0.00033698,2]
[311092336,1704901884596,-523.18,0.00033698,2]
[311092337,1704901884606,-606.41,0.00033698,2]
[311092338,1704901884616,-1010.49,0.00033698,2]
[311092339,1704901884627,-1214.0,0.00033698,2]
[311092340,1704901884637,-500.0,0.00033698,2]
[311092341,1704901884647,-425.01487587,0.00033698,2]
[311092342,1704901884657,-1052.82,0.00033698,2]
[311092343,1704901884668,-1111.49,0.00033698,2]
[311092344,1704901884679,-22537.3,0.00033698,2]
[311092345,1704901884690,-517.3,0.00033698,2]
[311092346,1704901884701,-652.84,0.00033698,2]
[311092347,1704901884712,-1027.93,0.00033698,2]
[311092348,1704901884723,-500.0,0.00033698,2]
[311092349,1704901884734,-500.0,0.00033698,2]
[311092350,1704901884745,-619.25,0.00033698,2]
[311092351,1704901884756,-540.69,0.00033698,2]
[311092352,1704901884767,-500.0,0.00033698,2]
[311092353,1704901884780,-500.0,0.00033698,2]
[311092354,1704901884791,-531.22,0.00033698,2]
[311092355,1704901884801,-949.96,0.00033698,2]
[311092356,1704901884812,-822.79,0.00033698,2]
[311092357,1704901884822,-561.93,0.00033698,2]
[311092358,1704901884834,-841.87,0.00033698,2]
[311092359,1704901884844,-500.0,0.00033698,2]
[311092360,1704901884855,-500.0,0.00033698,2]
[311092361,1704901884865,-4149.02,0.00033698,2]
[311092362,1704901884876,-500.0,0.00033698,2]
[311092363,1704901884887,-500.0,0.00033698,2]
[311092364,1704901884899,-588.0,0.00033698,2]
[311092365,1704901884910,-1144.17,0.00033698,2]
[311092366,1704901884921,-1384.54,0.00033698,2]
[311092367,1704901884932,-2853.73,0.00033698,2]
[311092368,1704901884942,-1585.1,0.00033698,2]
[311092369,1704901884953,-565.73,0.00033698,2]
[311092370,1704901884963,-518.12,0.00033698,2]
[311092371,1704901884974,-546.42,0.00033698,2]
[311092372,1704901884984,-5771.71,0.00033698,2]
[311092373,1704901884994,-1094.06,0.00033698,2]
[311092374,1704901885005,-500.0,0.00033698,2]
[311092375,1704901885015,-1075.13,0.00033698,2]
[311092376,1704901885027,-455.55889186,0.00033698,2]
[311092377,1704901885038,-500.0,0.00033698,2]
[311092378,1704901885048,-1529.8,0.00033698,2]
[311092379,1704901885059,-704.92,0.00033698,2]
[311092380,1704901885069,-6554.84,0.00033698,2]
[311092381,1704901885080,-500.0,0.00033698,2]
[311092382,1704901885091,-500.0,0.00033698,2]
[311092383,1704901885101,-515.73,0.00033698,2]
[311092384,1704901885111,-606.81,0.00033698,2]
[311092385,1704901885122,-3847.89,0.00033698,2]
[311092386,1704901885133,-1873.06,0.00033698,2]
[311092387,1704901885143,-1237.27,0.00033698,2]
[311092388,1704901885155,-500.0,0.00033698,2]
[311092389,1704901885165,-722.18,0.00033698,2]
[311092390,1704901885176,-682.55,0.00033698,2]
[311092391,1704901885186,-890.2,0.00033698,2]
[311092392,1704901885197,-1162.53,0.00033698,2]
[311092393,1704901885207,-600.06389769,0.00033698,2]
[311092394,1704901885218,-1171.63,0.00033698,2]
[311092395,1704901885234,-1201.37,0.00033698,2]
[311092396,1704901885256,-838.5,0.00033698,2]
[311092397,1704901885282,-1149.89,0.00033698,2]
[311092398,1704901885306,-589.12,0.00033698,2]